bitfinex-derivatives/quotes_ETHF0:USTF0_20240923
["timestamp","ask_amount","ask_price","bid_price","bid_amount"]
[1727069821649,0.4068,2663.5,2663.3,1.4687901]
[1727069823046,0.4068,2663.5,2663.2,4.3410501]
[1727069823248,0.4068,2663.5,2663.3,1.26990024]
[1727069823451,0.4068,2663.5,2663.3,1.4687901]
[1727069824734,0.4068,2663.5,2663.4,1.27044006]
[1727069825443,0.4068,2663.5,2663.4,2.73923016]
[1727069825950,0.4068,2663.5,2663.4,1.47131103]
[1727069826248,0.4068,2663.5,2663.4,3.32713772]
[1727069826446,0.4068,2663.5,2663.4,1.85582064]
[1727069828150,0.37534,2664.1,2663.4,18.828226]
[1727069828445,5.1729563,2664.2,2663.7,3.89755176]
[1727069828446,0.37536,2664.0,2663.7,3.89755176]
[1727069828644,0.37536,2664.0,2663.8,3.14831925]
[1727069828847,0.37536,2664.0,2663.8,1.87736176]
[1727069829349,0.37534,2664.1,2663.8,1.87736176]
[1727069829742,3.99943,2664.2,2663.8,2.25274176]
[1727069830241,3.6241,2664.2,2663.8,1.87736176]
[1727069830444,0.37534,2664.1,2663.8,1.87736176]
[1727069830644,3.6241,2664.2,2663.8,1.87736176]
[1727069830645,0.4163,2664.2,2663.9,1.27150018]
[1727069830944,0.8782,2664.3,2664.0,1.64659211]
[1727069831143,0.8782,2664.3,2664.0,0.37535]
[1727069831540,0.8782,2664.3,2664.0,0.80235]
[1727069832051,0.8782,2664.3,2664.0,0.427]
[1727069832346,0.8782,2664.3,2663.9,1.84752176]
[1727069832549,0.8782,2664.3,2664.0,1.2712365]
[1727069832744,0.8782,2664.3,2663.9,1.84752176]
[1727069832745,1.25352,2664.3,2663.9,1.84752176]
[1727069832950,1.25352,2664.3,2664.0,1.2712466]
[1727069833251,1.25352,2664.3,2663.9,1.84752176]
[1727069833444,1.25352,2664.3,2664.0,1.27120244]
[1727069833749,1.25352,2664.3,2663.9,1.84752176]
[1727069834045,1.25352,2664.3,2664.0,1.27112672]
[1727069834240,1.25352,2664.3,2663.9,1.84752176]
[1727069834441,1.25352,2664.3,2664.0,1.27116654]
[1727069834648,1.25352,2664.3,2663.9,1.84752176]
[1727069834649,0.8782,2664.3,2663.9,1.84752176]
[1727069834848,1.25352,2664.3,2664.0,1.27114705]
[1727069835049,1.25352,2664.3,2663.9,1.84752176]
[1727069835242,1.25352,2664.3,2664.0,1.27114037]
[1727069835443,1.25352,2664.3,2663.9,1.84752176]
[1727069835644,0.37534,2664.1,2664.0,1.2711341]
[1727069836249,0.37533,2664.2,2664.0,1.2711341]
[1727069836449,0.37533,2664.2,2663.9,1.47216176]
[1727069836750,0.37533,2664.2,2664.0,1.27122299]
[1727069836947,0.37533,2664.2,2663.9,1.47216176]
[1727069837246,0.37533,2664.2,2664.0,1.27104665]
[1727069837442,0.37533,2664.2,2663.9,1.47216176]
[1727069837642,0.37533,2664.2,2664.0,1.27107271]
[1727069837849,0.37533,2664.2,2663.9,1.47216176]
[1727069838051,0.37533,2664.2,2664.0,1.27108036]
[1727069838237,0.37533,2664.2,2663.9,1.47216176]
[1727069838444,0.37533,2664.2,2664.0,1.27108015]
[1727069838643,0.37533,2664.2,2663.9,2.42216176]
[1727069838843,0.37533,2664.2,2664.0,1.27112254]
[1727069839041,0.8782,2664.3,2664.1,1.32534]
[1727069839351,0.4315,2664.3,2664.1,1.32534]
[1727069839549,0.37529,2664.5,2664.2,0.95]
[1727069839550,0.4203,2664.5,2664.2,0.95]
[1727069839850,0.4041,2664.8,2664.4,0.95]
[1727069840150,0.4041,2664.8,2664.7,1.32525]
[1727069840354,0.4041,2664.8,2664.6,3.89571104]
[1727069840542,0.4188,2664.9,2664.6,4.33311104]
[1727069841048,0.4188,2664.9,2664.6,2.86266]
[1727069841644,0.79403,2664.9,2664.6,2.4874]
[1727069841840,0.79403,2664.9,2664.6,0.4374]
[1727069842651,0.4188,2664.9,2664.6,0.81267]
[1727069842950,3.98759,2665.2,2664.7,0.37525]
[1727069843148,4.4682,2665.2,2664.8,0.448]
[1727069843349,0.8182,2665.2,2664.8,2.498]
[1727069843551,0.4046,2665.4,2664.8,2.498]
[1727069843746,0.4046,2665.4,2664.8,3.96845104]
[1727069843945,0.4046,2665.4,2664.9,1.6426173]
[1727069844153,0.4046,2665.4,2664.9,3.58302]
[1727069844351,0.4046,2665.4,2665.0,2.8674]
[1727069844858,0.4046,2665.4,2665.0,2.4922]
[1727069845343,0.77975,2665.4,2665.0,2.4922]
[1727069846344,0.4046,2665.4,2665.0,0.4422]
[1727069846755,0.37519,2665.2,2664.9,3.2078]
[1727069846953,0.4046,2665.4,2664.9,3.2078]
[1727069847150,0.37518,2665.3,2664.9,3.2078]
[1727069847346,0.37518,2665.2,2664.9,3.2078]
[1727069847550,0.37521,2665.0,2664.9,3.2078]
[1727069847753,0.3752,2665.1,2664.9,3.2078]
[1727069847947,3.2078,2665.3,2664.9,3.2078]
[1727069847948,0.834,2665.0,2664.9,3.2078]
[1727069848153,0.37518,2665.3,2664.9,3.2078]
[1727069848350,0.4186,2665.2,2664.9,3.2078]
[1727069849263,0.79379,2665.2,2664.9,3.2078]
[1727069849450,0.3752,2665.1,2664.9,3.2078]
[1727069849756,0.4172,2665.0,2664.9,3.2078]
[1727069850759,0.4172,2665.0,2664.7,3.2078]
[1727069851057,0.4172,2665.0,2664.5,0.4354]
[1727069851058,0.37525,2664.7,2664.5,0.4354]
[1727069851256,0.4504,2664.6,2664.5,0.4354]
[1727069851463,0.4504,2664.6,2664.4,0.4472]
[1727069851651,0.8708,2664.6,2664.4,0.4472]
[1727069852346,0.8708,2664.6,2664.2,0.4455]
[1727069852347,0.37528,2664.5,2664.2,0.4455]
[1727069852544,0.4517,2664.5,2664.2,0.4455]
[1727069853654,0.82698,2664.5,2664.2,0.4455]
[1727069853855,0.4517,2664.5,2664.2,0.4455]
[1727069854457,0.82699,2664.5,2664.2,0.4455]
[1727069855056,0.4517,2664.5,2664.2,0.4455]
[1727069855360,0.4517,2664.5,2664.2,2.4955]
[1727069860354,1.24608,2664.6,2664.2,2.4955]
[1727069860556,1.24608,2664.6,2664.2,2.9322]
[1727069861064,0.37528,2664.5,2664.2,2.9322]
[1727069861263,1.24607,2664.6,2664.2,2.4955]
[1727069861863,0.8708,2664.6,2664.2,2.4955]
[1727069862065,1.24607,2664.6,2664.2,2.4955]
[1727069864159,1.24607,2664.6,2664.2,2.05]
[1727069864360,0.37528,2664.5,2664.2,2.05]
[1727069864564,0.414,2664.4,2664.2,2.05]
[1727069864769,0.7893,2664.4,2664.1,41.2472]
[1727069865271,0.414,2664.4,2664.0,3.2078]
[1727069865463,0.37532,2664.3,2664.0,3.2078]
[1727069865861,0.82842,2664.2,2664.0,3.2078]
[1727069866362,0.4092,2664.1,2664.0,3.2078]
[1727069866759,0.78454,2664.1,2664.0,3.2078]
[1727069868364,6.2128,2664.1,2663.6,1.46522411]
[1727069868565,6.2128,2664.1,2663.4,3.2078]
[1727069868566,0.37541,2663.6,2663.4,3.2078]
[1727069868873,0.4226,2663.5,2663.4,3.2078]
[1727069869262,0.79802,2663.5,2663.4,3.2078]
[1727069869767,0.79802,2663.5,2663.0,5.2578]
[1727069869768,0.4226,2663.5,2663.0,5.2578]
[1727069870078,0.79802,2663.5,2663.1,0.8634]
[1727069870369,0.4495,2663.4,2663.1,0.8634]
[1727069873273,0.4495,2663.4,2663.1,1.84259554]
[1727069873470,0.4495,2663.4,2663.1,0.8634]
[1727069874173,2.49,2663.9,2663.2,2.05]
[1727069874174,0.81537,2663.9,2663.2,2.05]
[1727069874473,0.81537,2663.9,2663.4,2.05]
[1727069874474,0.82699,2663.8,2663.4,2.05]
[1727069875177,0.4516,2663.8,2663.4,2.05]
[1727069875373,0.4265,2663.9,2663.5,0.4472]
[1727069875581,0.37536,2664.0,2663.6,0.4315]
[1727069875871,0.4516,2664.1,2663.7,2.05]
[1727069876066,7.0978,2664.6,2664.0,0.37535]
[1727069876374,7.0978,2664.6,2664.1,0.8765]
[1727069876375,4.1129,2664.6,2664.1,0.8765]
[1727069876573,4.48817,2664.6,2664.1,0.8765]
[1727069877572,3.6613,2664.6,2664.2,0.97919554]
[1727069877966,3.6613,2664.6,2664.3,40.8]
[1727069878570,4.03657,2664.6,2664.3,40.8]
[1727069878771,3.6613,2664.6,2664.1,0.4293]
[1727069879081,0.4456,2664.5,2664.0,3.2078]
[1727069879375,0.4456,2664.5,2664.0,44.0078]
[1727069879679,0.4393,2664.4,2664.0,44.0078]
[1727069880485,0.8146,2664.4,2664.0,44.0078]
[1727069880675,0.4393,2664.4,2664.0,44.0078]
[1727069880879,0.8146,2664.4,2664.0,44.0078]
[1727069881085,0.4393,2664.4,2664.0,3.2078]
[1727069884885,3.6613,2664.6,2664.1,3.02919554]
[1727069885075,3.6613,2664.6,2664.2,0.79892]
[1727069885275,4.03657,2664.6,2664.3,0.4267]
[1727069885875,3.6613,2664.6,2664.3,0.4267]
[1727069886989,0.4535,2664.6,2664.3,0.4267]
[1727069887376,0.82877,2664.6,2664.3,0.4267]
[1727069889282,0.82877,2664.6,2664.2,0.4236]
[1727069889283,0.78848,2664.5,2664.2,0.4236]
[1727069889787,0.4132,2664.5,2664.2,0.4236]
[1727069890286,0.4132,2664.5,2664.2,1.40279554]
[1727069890785,0.78849,2664.5,2664.2,1.40279554]
[1727069891481,0.3753,2664.4,2664.2,1.40279554]
[1727069891688,0.3753,2664.4,2664.2,0.97919554]
[1727069892087,0.3753,2664.4,2664.1,6.23699554]
[1727069892479,0.3753,2664.4,2664.1,4.18699554]
[1727069892689,0.4118,2664.3,2664.1,4.18699554]
[1727069892987,0.4118,2664.3,2664.1,3.2078]
[1727069893191,0.4118,2664.3,2664.1,4.18699554]
[1727069893380,0.4118,2664.3,2664.0,1.42479554]
[1727069893381,0.78712,2664.3,2664.0,1.42479554]
[1727069893580,0.4118,2664.3,2664.0,1.42479554]
[1727069893994,0.78712,2664.3,2664.0,1.42479554]
[1727069896895,0.78711,2664.3,2664.0,1.42479554]
[1727069897089,0.4118,2664.3,2664.0,1.42479554]
[1727069898193,0.78711,2664.3,2664.0,1.42479554]
[1727069898383,0.4118,2664.3,2664.0,1.80014554]
[1727069898582,0.78711,2664.3,2664.0,1.42479554]
[1727069898984,0.4118,2664.3,2664.0,1.42479554]
[1727069899179,0.4118,2664.3,2664.1,0.97919554]
[1727069899587,0.78711,2664.3,2664.1,0.97919554]
[1727069900384,0.3753,2664.4,2664.1,4.73279554]
[1727069900590,0.37531,2664.3,2664.1,0.97919554]
[1727069901395,0.3753,2664.4,2664.1,0.97919554]
[1727069903887,0.37532,2664.3,2664.1,0.97919554]
[1727069904088,0.3753,2664.4,2664.1,0.97919554]
[1727069904285,0.8231,2664.5,2664.1,0.97919554]
[1727069904493,0.3753,2664.4,2664.1,0.97919554]
[1727069905398,1.19839,2664.5,2664.1,0.97919554]
[1727069905597,0.3753,2664.4,2664.1,0.97919554]
[1727069906487,0.8231,2664.5,2664.1,4.18699554]
[1727069906688,1.19838,2664.5,2664.1,4.18699554]
[1727069907193,0.8231,2664.5,2664.2,0.95]
[1727069907402,0.4132,2664.5,2664.4,0.95]
[1727069908093,0.4132,2664.5,2664.3,1.40369554]
[1727069908487,0.78848,2664.5,2664.3,0.97919554]
[1727069908789,0.4132,2664.5,2664.3,0.97919554]
[1727069909599,0.4132,2664.5,2664.1,0.97919554]
[1727069910002,0.3753,2664.4,2664.1,0.97919554]
[1727069910484,0.3753,2664.4,2664.0,1.92919554]
[1727069911089,0.37531,2664.3,2664.0,0.97919554]
[1727069911393,0.4275,2664.2,2664.0,0.97919554]
[1727069911590,0.4519,2664.1,2664.0,0.97919554]
[1727069911789,0.8869,2664.1,2664.0,0.97919554]
[1727069915295,5.01584,2664.1,2664.0,0.97919554]
[1727069915500,0.37535,2664.0,2663.8,0.97919554]
[1727069915798,1.26224,2664.1,2663.8,0.97919554]
[1727069916103,1.26224,2664.1,2663.9,0.97919554]
[1727069918797,0.37535,2664.0,2663.9,0.97919554]
[1727069919587,0.8869,2664.1,2663.9,1.27108275]
[1727069919588,1.26224,2664.1,2663.9,1.27108275]
[1727069919787,1.26224,2664.1,2664.0,0.98098463]
[1727069920197,0.37535,2664.0,2663.9,0.98098463]
[1727069920394,0.37537,2663.9,2663.8,0.98098463]
[1727069920599,0.37537,2663.9,2663.8,0.98151602]
[1727069921295,0.37537,2663.9,2663.8,1.27249159]
[1727069921501,0.8869,2664.1,2663.8,0.98198881]
[1727069921698,0.37537,2663.9,2663.8,0.98198881]
[1727069922401,5.07897,2663.9,2663.8,0.98198881]
[1727069926899,0.37538,2663.8,2663.7,0.98198881]
[1727069927093,0.37538,2663.8,2663.7,2.25318202]
[1727069927294,0.37538,2663.8,2663.7,0.98198881]
[1727069927898,1.32538,2663.8,2663.7,1.27107866]
[1727069928100,0.3754,2663.7,2663.5,0.98117371]
[1727069928291,0.8575,2663.7,2663.5,0.98117371]
[1727069928496,0.37537,2663.9,2663.6,0.98117371]
[1727069928691,0.37538,2663.8,2663.6,0.98117371]
[1727069929506,1.32538,2663.8,2663.6,0.98117371]
[1727069930209,1.32538,2663.8,2663.5,1.46522411]
[1727069930210,0.95,2663.8,2663.7,0.98117371]
[1727069930507,0.79407,2663.9,2663.7,0.98117371]
[1727069930697,0.37538,2663.8,2663.7,0.98117371]
[1727069930899,0.4187,2663.9,2663.7,0.98117371]
[1727069931101,0.4187,2663.9,2663.8,0.98117371]
[1727069931703,0.4187,2663.9,2663.7,1.40287371]
[1727069931908,0.4187,2663.9,2663.7,1.83297371]
[1727069932110,0.4187,2663.9,2663.7,2.29517371]
[1727069932907,0.37538,2663.8,2663.7,1.83297371]
[1727069933103,0.37538,2663.8,2663.7,0.98117371]
[1727069933606,0.37542,2663.5,2663.4,4.18897371]
[1727069934113,0.37542,2663.5,2663.4,3.2078]
[1727069934302,1.70762,2663.5,2663.4,3.2078]
[1727069935304,1.3322,2663.5,2663.4,4.18897371]
[1727069935506,1.70762,2663.5,2663.4,4.18897371]
[1727069935704,1.3322,2663.5,2663.4,4.18897371]
[1727069936105,0.8783,2663.5,2663.4,4.18897371]
[1727069936301,0.4511,2663.5,2663.4,4.18897371]
[1727069937916,0.4511,2663.5,2663.4,3.2078]
[1727069940214,0.4511,2663.5,2663.3,5.08517371]
[1727069943214,0.82653,2663.5,2663.3,4.62497371]
[1727069943416,0.82653,2663.5,2663.3,4.18897371]
[1727069943616,0.37544,2663.4,2663.3,4.18897371]
[1727069944023,0.37544,2663.4,2663.2,1.44187371]
[1727069944317,0.82652,2663.5,2663.2,1.44187371]
[1727069946108,0.4511,2663.5,2663.2,1.44187371]
[1727069946915,0.82653,2663.5,2663.2,1.44187371]
[1727069947121,0.82653,2663.5,2663.2,4.64967371]
[1727069947533,0.37544,2663.4,2663.2,4.64967371]
[1727069947828,1.32544,2663.4,2663.2,3.6685]
[1727069948029,0.8654,2663.3,2663.2,3.2078]
[1727069948322,0.8654,2663.3,2663.2,4.18897371]
[1727069948522,0.8654,2663.3,2663.1,0.98117371]
[1727069952423,0.95,2663.4,2663.1,0.98117371]
[1727069952732,0.82653,2663.5,2663.2,0.98117371]
[1727069953823,0.82653,2663.5,2663.3,0.98117371]
[1727069955928,0.4511,2663.5,2663.4,0.98117371]
[1727069956427,0.4511,2663.5,2663.4,2.24953464]
[1727069956633,0.4511,2663.5,2663.4,2.70413464]
[1727069958122,0.4511,2663.5,2663.4,1.72296093]
[1727069958425,0.4511,2663.5,2663.4,3.18818504]
[1727069960733,0.95,2663.8,2663.5,0.37542]
[1727069961034,0.95,2663.8,2663.7,0.9814621]
[1727069961429,1.28337,2663.9,2663.7,2.74168956]
[1727069961644,0.908,2663.9,2663.8,0.98143048]
[1727069961934,1.28337,2663.9,2663.8,2.25078717]
[1727069962132,1.28337,2663.9,2663.8,2.25079018]
[1727069962337,1.28337,2663.9,2663.8,2.25089807]
[1727069962831,0.908,2663.9,2663.8,0.98143048]
[1727069963037,1.28337,2663.9,2663.8,0.98143048]
[1727069963223,0.908,2663.9,2663.8,0.98143048]
[1727069964534,0.908,2663.9,2663.8,2.25108216]
[1727069965832,0.908,2663.9,2663.8,0.98143048]
[1727069966045,0.908,2663.9,2663.8,2.25113667]
[1727069966336,0.908,2663.9,2663.8,1.26970619]
[1727069967831,0.908,2663.9,2663.8,2.25151595]
[1727069968031,0.908,2663.9,2663.8,1.26970619]
[1727069968234,0.908,2663.9,2663.8,3.18039935]
[1727069968435,1.3668,2664.1,2663.8,3.66183834]
[1727069968636,2.2422,2664.1,2664.0,0.98149089]
[1727069969134,2.2422,2664.1,2664.0,2.25096114]
[1727069969323,2.2422,2664.1,2664.0,0.98149089]
[1727069969525,2.2422,2664.1,2664.0,2.25113745]
[1727069969731,2.2422,2664.1,2664.0,0.98149089]
[1727069970425,1.96044276,2664.4,2664.0,0.98149089]
[1727069970736,0.95,2664.4,2664.1,4.18929089]
[1727069971336,0.95,2664.2,2664.1,4.18929089]
[1727069971537,1.32532,2664.2,2664.1,4.18929089]
[1727069971726,5.07892,2664.2,2663.9,0.98149089]
[1727069971928,0.95,2664.0,2663.9,0.98149089]
[1727069972835,0.95,2664.0,2663.9,2.25129937]
[1727069973137,0.95,2664.0,2663.9,0.98149089]
[1727069973333,0.95,2664.0,2663.9,2.25126275]
[1727069973630,0.95,2664.0,2663.9,2.25110873]
[1727069973838,0.95,2664.0,2663.9,2.74181076]
[1727069974032,0.95,2664.0,2663.9,0.98165184]
[1727069976729,0.95,2664.0,2663.8,4.18945184]
[1727069976935,0.95,2664.0,2663.7,0.98165184]
[1727069976936,0.37538,2663.8,2663.7,0.98165184]
[1727069977138,1.32538,2663.8,2663.7,0.98165184]
[1727069977327,0.95,2663.8,2663.7,0.98165184]
[1727069977532,1.32538,2663.8,2663.7,0.98165184]
[1727069979631,0.95,2663.8,2663.7,0.98165184]
[1727069979833,0.37538,2663.9,2663.7,0.98165184]
[1727069979834,1.32537,2663.9,2663.7,0.98165184]
[1727069980435,0.37538,2663.8,2663.7,0.98165184]
[1727069980638,0.95,2663.9,2663.7,0.98165184]
[1727069980938,1.32538,2663.8,2663.7,0.98165184]
[1727069981128,0.95,2663.8,2663.5,4.18945184]
[1727069981330,0.95,2663.6,2663.5,3.2078]
[1727069981536,1.32541,2663.6,2663.5,3.2078]
[1727069981838,1.32541,2663.6,2663.3,0.98165184]
[1727069981839,0.95,2663.6,2663.3,0.98165184]
[1727069982041,1.32544,2663.4,2663.2,0.98165184]
[1727069982342,0.8667,2663.3,2663.2,0.98165184]
[1727069982536,1.2837,2663.3,2663.2,0.98165184]
[1727069983330,1.65915,2663.3,2663.2,0.98165184]
[1727069983741,1.2837,2663.3,2663.2,0.98165184]
[1727069984130,1.2837,2663.3,2663.2,2.25168511]
[1727069984334,1.2837,2663.3,2663.2,1.27003327]
[1727069984643,4.53321,2663.7,2663.2,2.74226961]
[1727069984844,0.8878,2663.6,2663.3,2.71299328]
[1727069985051,0.8878,2663.6,2663.4,0.98186001]
[1727069987640,0.8878,2663.6,2663.5,0.98186001]
[1727069988144,1.26321,2663.6,2663.4,0.98186001]
[1727069988337,0.95,2663.5,2663.4,0.98186001]
[1727069988645,0.95,2663.5,2663.4,1.26984627]
[1727069988844,0.95,2663.5,2663.4,0.98184268]
[1727069991242,5.16824276,2664.0,2663.4,10.73624268]
[1727069991243,1.96044276,2664.0,2663.4,10.73624268]
[1727069991446,4.1075,2664.6,2664.2,0.37532]
[1727069991642,4.1075,2664.6,2664.3,2.23225806]
[1727069991836,3.2078,2664.6,2664.4,43.42426828]
[1727069992049,3.2078,2664.6,2664.4,42.15605806]
[1727069992243,3.2078,2664.6,2664.5,0.98075806]
[1727069992556,3.2078,2664.6,2664.4,41.78075806]
[1727069993642,3.2078,2664.6,2664.4,42.15604806]
[1727069994042,3.2078,2664.6,2664.4,41.78075806]
[1727069994642,0.37523,2664.9,2664.4,41.78075806]
[1727069995648,0.37523,2664.9,2664.4,0.98075806]
[1727069996054,0.37523,2664.9,2664.4,41.78075806]
[1727069996953,0.37524,2664.8,2664.4,40.8]
[1727069997150,0.37523,2664.9,2664.4,40.8]
[1727069998149,0.37524,2664.8,2664.4,40.8]
[1727069998645,2.42524,2664.8,2664.4,40.8]
[1727069998844,2.42524,2664.8,2664.3,5.06475806]
[1727069999040,0.37526,2664.7,2664.3,5.06475806]
[1727070000959,0.37529,2664.5,2664.3,3.6598]
[1727070001156,2.87897,2664.6,2664.3,3.6598]
[1727070001550,0.4582,2664.5,2664.3,3.6598]
[1727070004366,0.9083,2664.5,2664.3,3.6598]
[1727070006060,0.9083,2664.5,2664.3,0.452]
[1727070006355,0.9083,2664.5,2664.3,3.6598]
[1727070006957,0.37517,2665.3,2664.4,8.53908163]
[1727070007257,0.37517,2665.3,2664.7,3.58305]
[1727070007464,2.05,2665.5,2664.9,0.37522]
[1727070007465,2.42515,2665.5,2664.9,0.37522]
[1727070007758,0.37515,2665.5,2665.0,0.4443]
[1727070007950,2.05,2665.6,2665.0,0.4443]
[1727070008150,0.37514,2665.5,2665.0,0.4443]
[1727070008957,0.37516,2665.4,2665.0,0.4443]
[1727070009474,0.37518,2665.3,2665.0,0.4443]
[1727070010565,0.37519,2665.2,2664.8,0.4293]
[1727070011044,0.4559,2665.3,2664.8,0.4293]
[1727070011251,0.37515,2665.5,2664.8,0.4293]
[1727070011450,0.37514,2665.5,2665.0,0.37521]
[1727070011859,0.37514,2665.5,2664.8,2.4793]
[1727070011860,3.2078,2665.4,2664.8,0.4293]
[1727070012156,2.05,2665.2,2664.8,0.4293]
[1727070012355,0.4559,2665.1,2664.8,0.4293]
[1727070012555,0.4559,2665.1,2664.8,0.80454]
[1727070013150,0.871,2665.3,2664.8,0.80454]
[1727070013961,1.24617,2665.3,2664.8,0.4293]
[1727070014461,0.37518,2665.2,2664.8,0.4293]
[1727070014659,0.4241,2665.3,2664.8,0.4293]
[1727070014865,0.4241,2665.3,2664.8,0.80454]
[1727070015557,0.79696,2665.4,2664.8,0.4293]
[1727070015964,0.79696,2665.4,2664.8,0.80453]
[1727070016658,0.37517,2665.3,2664.8,0.80453]
[1727070016961,0.37517,2665.3,2665.0,3.2078]
[1727070017158,0.4218,2665.4,2665.0,3.2078]
[1727070017159,0.79696,2665.4,2665.0,3.2078]
[1727070018162,0.4218,2665.4,2665.0,3.2078]
[1727070018365,0.79696,2665.4,2665.0,3.2078]
[1727070018860,0.4218,2665.4,2665.0,3.2078]
[1727070019165,0.4218,2665.4,2665.0,3.583]
[1727070020367,0.4218,2665.4,2665.0,3.2078]
[1727070020868,0.4218,2665.4,2665.0,3.58301]
[1727070021759,0.37514,2665.5,2665.0,3.58301]
[1727070022069,0.37514,2665.5,2665.1,0.4425]
[1727070023168,0.37514,2665.5,2665.2,0.4202]
[1727070023566,0.37514,2665.5,2665.2,0.8413]
[1727070028667,1.32514,2665.5,2665.2,0.8413]
[1727070028867,0.37515,2665.4,2665.0,3.2078]
[1727070029367,0.453,2665.6,2665.0,3.583]
[1727070029568,0.37515,2665.5,2665.1,0.434]
[1727070030078,0.37515,2665.5,2665.2,0.4176]
[1727070031170,0.37515,2665.5,2665.1,0.8645]
[1727070031171,0.37515,2665.5,2665.1,0.434]
[1727070033774,0.37516,2665.4,2665.0,3.6254]
[1727070033971,0.37518,2665.3,2665.0,3.6254]
[1727070034271,0.8761,2665.2,2665.0,3.2078]
[1727070034466,1.2846,2665.2,2665.0,3.2078]
[1727070034868,5.49344276,2666.0,2665.0,3.2078]
[1727070034869,1.96044276,2666.2,2665.2,2.81389]
[1727070035078,1.96044276,2666.2,2665.1,12.23842934]
[1727070035079,0.5999,2666.8,2665.9,0.9775076]
[1727070035267,0.4132,2666.5,2665.8,4.5329]
[1727070035467,0.4085,2666.4,2666.0,40.8]
[1727070035671,0.4085,2666.4,2666.0,41.75]
[1727070035872,0.4085,2666.4,2666.0,42.1677]
[1727070036175,0.4085,2666.4,2666.0,40.8]
[1727070036475,0.37506,2666.1,2665.8,3.2078]
[1727070036768,0.4132,2666.0,2665.8,3.2078]
[1727070036982,0.4132,2666.0,2665.8,44.0078]
[1727070037274,0.4123,2665.9,2665.8,44.0078]
[1727070037464,0.4123,2665.9,2665.6,0.9775076]
[1727070037769,0.4433,2665.8,2665.4,4.5977076]
[1727070037977,0.4433,2665.8,2665.4,45.3977076]
[1727070038278,0.4433,2665.8,2665.4,44.4202]
[1727070038460,0.4433,2665.8,2665.5,0.37513]
[1727070039276,0.4123,2665.9,2665.5,4.12633]
[1727070039468,0.4123,2665.9,2665.5,0.37513]
[1727070040075,0.4123,2665.9,2665.4,45.7728576]
[1727070040378,0.4123,2665.9,2665.5,0.37514]
[1727070040578,0.4123,2665.9,2665.4,45.7728576]
[1727070040770,0.4123,2665.9,2665.5,0.37514]
[1727070041777,0.4132,2666.0,2665.5,5.8012]
[1727070041971,0.4326,2666.2,2665.7,5.2578]
[1727070042279,0.80691,2666.5,2666.1,3.2078]
[1727070042473,0.37502,2666.4,2666.1,3.2078]
[1727070042777,0.82022,2666.4,2666.1,3.2078]
[1727070042976,0.37503,2666.3,2666.1,3.2078]
[1727070043578,0.82022,2666.4,2666.1,3.2078]
[1727070044577,0.4452,2666.4,2666.1,3.2078]
[1727070044878,0.4452,2666.4,2665.8,3.2078]
[1727070044879,0.37503,2666.3,2665.8,3.2078]
[1727070045174,0.4078,2666.2,2665.8,3.2078]
[1727070046175,0.78284,2666.2,2665.8,3.2078]
[1727070049275,0.37506,2666.1,2665.8,3.2078]
[1727070049475,0.4208,2666.0,2665.8,3.2078]
[1727070049677,0.8486,2666.0,2665.8,3.2078]
[1727070053472,0.8486,2666.0,2665.8,4.1853076]
[1727070054785,1.22367,2666.0,2665.8,3.2078]
[1727070055481,1.22367,2666.0,2665.8,4.1853076]
[1727070055882,1.22367,2666.0,2665.8,3.2078]
[1727070056474,1.22367,2666.0,2665.8,4.1853076]
[1727070056771,0.4078,2666.2,2665.8,7.9365076]
[1727070056972,0.80337,2666.1,2665.8,4.1853076]
[1727070058181,0.37507,2666.0,2665.8,4.1853076]
[1727070058483,0.37507,2666.0,2665.8,3.2078]
[1727070058679,0.4347,2665.9,2665.8,3.2078]
[1727070058884,0.4347,2665.9,2665.8,4.1853076]
[1727070059491,0.4347,2665.9,2665.8,3.2078]
[1727070060287,0.80336,2666.1,2665.8,3.2078]
[1727070060582,1.21466,2666.1,2665.8,3.2078]
[1727070061679,0.37507,2666.0,2665.8,3.2078]
[1727070062492,1.21466,2666.1,2665.8,3.2078]
[1727070062885,1.21466,2666.1,2665.8,4.1853076]
[1727070065184,0.37508,2666.0,2665.8,4.1853076]
[1727070066586,0.8396,2666.1,2665.8,4.1853076]
[1727070066587,1.21466,2666.1,2665.8,4.1853076]
[1727070069203,1.21466,2666.1,2665.9,0.9775076]
[1727070070097,0.37507,2666.0,2665.9,0.9775076]
[1727070070699,1.21466,2666.1,2665.9,0.9775076]
[1727070072104,1.21466,2666.1,2665.9,4.1853076]
[1727070072502,0.8396,2666.1,2665.9,4.1853076]
[1727070072704,1.21466,2666.1,2665.9,4.1853076]
[1727070074198,1.21466,2666.1,2666.0,0.9775076]
[1727070076506,4.96586,2666.1,2666.0,0.9775076]
[1727070076811,10.96586,2666.1,2665.7,0.9775076]
[1727070077011,1.3251,2665.8,2665.7,0.9775076]
[1727070077320,1.3251,2665.8,2665.7,0.97977761]
[1727070077508,5.0763,2665.8,2665.7,2.24679974]
[1727070077707,5.0763,2665.8,2665.7,0.97977761]
[1727070077916,0.37511,2665.7,2665.6,0.97977761]
[1727070078209,1.67591,2665.7,2665.6,0.97977761]
[1727070078607,5.42711,2665.7,2665.6,0.97977761]
[1727070079214,5.42711,2665.7,2665.6,1.26794112]
[1727070079412,5.42711,2665.7,2665.6,2.24837002]
[1727070079612,5.42711,2665.7,2665.6,0.9804289]
[1727070079806,5.42711,2665.7,2665.6,1.26777862]
[1727070080007,5.42711,2665.7,2665.6,2.24820357]
[1727070080209,5.42711,2665.7,2665.6,2.73891571]
[1727070080613,1.67591,2665.7,2665.6,2.73891571]
[1727070081014,1.67591,2665.7,2665.6,2.73949389]
[1727070081515,1.67591,2665.7,2665.6,1.2683568]
[1727070082109,5.42711,2665.7,2665.6,1.2683568]